bitfinex/quotes_BTCUSD_20250526
["timestamp","ask_amount","ask_price","bid_price","bid_amount"]
[1748277002746,0.20137249,109250.0,109240.0,4.39328864]
[1748277002971,0.19221951,109250.0,109240.0,4.02183326]
[1748277003433,0.19221951,109250.0,109240.0,3.14525314]
[1748277003637,0.36873951,109250.0,109240.0,0.00414958]
[1748277003821,0.39983951,109250.0,109240.0,0.00414958]
[1748277004016,0.48938507,109250.0,109240.0,0.00414958]
[1748277004235,0.57890658,109250.0,109240.0,0.00414958]
[1748277004440,0.48938507,109250.0,109240.0,0.00014958]
[1748277004634,0.67346507,109250.0,109240.0,0.00014958]
[1748277005447,1.52797719,109250.0,109240.0,0.00614958]
[1748277005648,1.02446507,109250.0,109240.0,0.00614958]
[1748277006000,1.02346507,109250.0,109240.0,0.00014958]
[1748277006207,1.11298658,109250.0,109240.0,0.00014958]
[1748277006423,1.6784987,109250.0,109240.0,0.00014958]
[1748277006631,1.6804987,109250.0,109240.0,0.00014958]
[1748277006835,0.26580927,109230.0,109220.0,0.002]
[1748277007090,0.74024555,109230.0,109220.0,0.002]
[1748277007239,1.07068555,109230.0,109220.0,0.002]
[1748277007439,0.68579483,109230.0,109220.0,0.002]
[1748277008043,0.68587483,109230.0,109220.0,0.002]
[1748277008249,0.32295483,109230.0,109220.0,0.51551212]
[1748277008476,0.46935483,109230.0,109220.0,0.002]
[1748277009319,0.47635483,109230.0,109220.0,0.003]
[1748277009808,0.24040927,109230.0,109220.0,0.003]
[1748277010030,0.35680927,109230.0,109220.0,0.51651212]
[1748277010480,0.02730939,109230.0,109220.0,1.63509182]
[1748277010738,0.20640961,109230.0,109220.0,1.42350812]
[1748277010947,0.20640961,109230.0,109220.0,0.002]
[1748277011161,0.23930961,109230.0,109220.0,0.002]
[1748277011566,0.23730961,109230.0,109220.0,0.002]
[1748277011778,0.29399036,109230.0,109220.0,0.002]
[1748277011992,0.41653592,109230.0,109220.0,0.003]
[1748277012194,0.41153592,109230.0,109220.0,0.003]
[1748277012397,0.41153592,109230.0,109220.0,0.002]
[1748277012596,0.41253592,109230.0,109220.0,0.002]
[1748277013049,0.0635,109210.0,109200.0,0.00028182]
[1748277013258,1.03219513,109210.0,109200.0,0.00028182]
[1748277013468,0.51639713,109210.0,109200.0,0.00028182]
[1748277014344,0.36999713,109210.0,109200.0,0.00028182]
[1748277014563,0.34548461,109210.0,109200.0,0.00028182]
[1748277014776,0.31648461,109210.0,109200.0,0.00128182]
[1748277015203,0.19643905,109210.0,109200.0,1.32716894]
[1748277015414,0.19643905,109210.0,109200.0,1.14181594]
[1748277015624,0.19543905,109210.0,109200.0,1.14081594]
[1748277015840,0.19243905,109210.0,109200.0,1.14081594]
[1748277016503,0.19443905,109210.0,109200.0,1.14081594]
[1748277017140,0.02961838,109210.0,109200.0,1.47378343]
[1748277017345,0.2219077,109210.0,109200.0,1.46462643]
[1748277017608,0.21475179,109210.0,109200.0,1.46462643]
[1748277017846,0.21475179,109210.0,109200.0,1.45546918]
[1748277018056,0.00930505,109210.0,109200.0,1.85365887]
[1748277018271,0.01846104,109210.0,109200.0,2.36717099]
[1748277018489,0.00014914,109210.0,109200.0,2.69973099]
[1748277019360,0.00014914,109210.0,109200.0,2.69873099]
[1748277019578,0.00014914,109210.0,109200.0,2.70173099]
[1748277019997,0.01830956,109230.0,109220.0,0.2250723]
[1748277020215,0.21056443,109230.0,109220.0,3.93263687]
[1748277020427,0.20140978,109230.0,109220.0,0.16235575]
[1748277020634,0.45062281,109230.0,109220.0,0.10247675]
[1748277020833,0.54016837,109230.0,109220.0,0.10247675]
[1748277021457,0.01831241,109210.0,109200.0,0.21290737]
[1748277021665,0.21975899,109210.0,109200.0,4.14521]
[1748277022078,0.20144658,109210.0,109200.0,3.91970568]
[1748277022253,0.20144658,109210.0,109200.0,3.07532012]
[1748277022456,0.20144658,109210.0,109200.0,2.44482312]
[1748277022681,0.20144658,109210.0,109200.0,2.44682312]
[1748277023666,0.20144658,109210.0,109200.0,0.994814]
[1748277023913,0.20144658,109210.0,109200.0,1.7006338]
[1748277024076,0.18359823,109230.0,109210.0,0.57464557]
[1748277024258,0.21058319,109220.0,109210.0,0.65503547]
[1748277024469,0.20142787,109220.0,109210.0,4.494352]
[1748277024871,0.02746631,109220.0,109210.0,4.51266441]
[1748277025097,0.03662205,109220.0,109210.0,4.51266441]
[1748277025503,0.22889452,109220.0,109210.0,4.51266441]
[1748277025707,0.20142821,109220.0,109210.0,0.27041256]
[1748277025906,0.20146493,109200.0,109190.0,0.72897212]
[1748277026106,0.19230768,109200.0,109190.0,4.31833263]
[1748277026332,0.19230768,109200.0,109190.0,4.65988991]
[1748277026529,0.18411664,109220.0,109210.0,0.19228999]
[1748277026733,0.18411664,109220.0,109210.0,4.02245011]
[1748277026955,0.18411664,109220.0,109210.0,3.31039912]
[1748277027114,0.18411664,109220.0,109210.0,2.143814]
[1748277027294,0.18311664,109220.0,109210.0,1.69]
[1748277027727,0.18359823,109230.0,109220.0,0.19227238]
[1748277027931,0.20190762,109230.0,109220.0,4.46113372]
[1748277028529,0.19275305,109230.0,109220.0,4.45197806]
[1748277029210,0.18459823,109230.0,109220.0,4.25970568]
[1748277029414,0.18459823,109230.0,109220.0,3.75313768]
[1748277029584,0.18659823,109230.0,109220.0,3.75313768]
[1748277030202,0.18459823,109230.0,109220.0,3.75313768]
[1748277030388,0.18359823,109230.0,109220.0,3.75313768]
[1748277030733,0.18359823,109230.0,109220.0,3.72104268]
[1748277031537,0.18359823,109230.0,109220.0,3.75234268]
[1748277032985,0.18359823,109230.0,109220.0,3.76693291]
[1748277033317,0.18359823,109230.0,109220.0,3.64608735]
[1748277033532,0.39696784,109230.0,109220.0,0.01459023]
[1748277033735,0.42886784,109230.0,109220.0,0.01459023]
[1748277034356,0.20144616,109210.0,109200.0,0.01459023]
[1748277034558,0.20144616,109210.0,109200.0,3.33123823]
[1748277034759,0.20144616,109210.0,109200.0,2.46186923]
[1748277034964,0.20144616,109210.0,109200.0,2.08341623]
[1748277035171,0.20144616,109210.0,109200.0,2.09061417]
[1748277035474,0.20144616,109210.0,109200.0,0.969478]
[1748277035697,0.19230752,109200.0,109190.0,0.5426432]
[1748277035856,0.19230752,109200.0,109190.0,3.77066276]
[1748277036058,0.19230752,109200.0,109190.0,3.04796423]
[1748277036260,0.19230752,109200.0,109190.0,2.07381723]
[1748277036947,0.19230752,109200.0,109190.0,2.059227]
[1748277037148,0.19230752,109200.0,109190.0,0.304758]
[1748277037349,0.19230752,109200.0,109190.0,0.307758]
[1748277037968,0.18313341,109210.0,109200.0,0.34]
[1748277038171,0.02746891,109210.0,109200.0,4.50721113]
[1748277038395,0.21975873,109210.0,109200.0,4.5072113]
[1748277038618,0.21060274,109210.0,109200.0,4.5072113]
[1748277038815,0.21060274,109210.0,109200.0,4.51636847]
[1748277039041,0.00915608,109210.0,109200.0,4.53468222]
[1748277039248,0.18313177,109220.0,109210.0,0.23294616]
[1748277039450,0.18313177,109220.0,109210.0,4.14349559]
[1748277039667,0.18313177,109220.0,109210.0,3.78121368]
[1748277039814,0.18313177,109220.0,109210.0,2.24379168]
[1748277041034,0.18313177,109220.0,109210.0,2.25837264]
[1748277042060,0.1922723,109220.0,109210.0,2.4952034]
[1748277042276,0.2105832,109220.0,109210.0,2.84435965]
[1748277042489,0.21973903,109220.0,109210.0,2.46813128]
[1748277042705,0.21058371,109220.0,109210.0,2.46813128]
[1748277042926,0.21058371,109220.0,109210.0,2.9816434]
[1748277043164,0.20142813,109220.0,109210.0,1.74686052]
[1748277043364,0.20142813,109220.0,109210.0,2.26037264]
[1748277043570,0.34786813,109220.0,109210.0,0.01658096]
[1748277043774,0.37976813,109220.0,109210.0,0.01658096]
[1748277043977,0.46830477,109220.0,109210.0,0.002]
[1748277044402,0.55785033,109220.0,109210.0,0.002]
[1748277044820,0.55785033,109220.0,109210.0,0.004]
[1748277045441,0.55785033,109220.0,109210.0,0.002]
[1748277045822,0.20148305,109190.0,109180.0,0.52809308]
[1748277046024,0.20148305,109190.0,109180.0,2.77585608]
[1748277046200,0.20148305,109190.0,109180.0,1.09847808]
[1748277047024,0.20148305,109190.0,109180.0,1.09862722]
[1748277047229,0.20148305,109190.0,109180.0,1.10262722]
[1748277047547,0.00915792,109190.0,109180.0,1.28581095]
[1748277047749,0.18316519,109200.0,109190.0,0.20148322]
[1748277047750,0.20146477,109200.0,109190.0,0.20148322]
[1748277047971,0.02747134,109200.0,109190.0,4.18584535]
[1748277048305,0.2014646,109200.0,109190.0,3.83016012]
[1748277048506,0.2014646,109200.0,109190.0,1.576911]
[1748277049256,0.2024646,109200.0,109190.0,1.055599]
[1748277049457,0.3802046,109200.0,109190.0,0.006]
[1748277049652,0.3802046,109200.0,109190.0,0.112932]
[1748277050028,0.3802046,109200.0,109190.0,0.124094]
[1748277050159,0.3489046,109200.0,109190.0,0.124094]
[1748277050342,0.2024646,109200.0,109190.0,0.006]
[1748277050548,0.3489046,109200.0,109190.0,0.1216]
[1748277050912,0.43341131,109200.0,109190.0,0.006]
[1748277051352,0.3802046,109200.0,109190.0,0.006]
[1748277053484,0.3702046,109200.0,109190.0,0.006]
[1748277054637,0.49105016,109200.0,109190.0,0.006]
[1748277055055,0.49105016,109200.0,109190.0,0.01454207]
[1748277055734,0.49005016,109200.0,109190.0,0.00854207]
[1748277055910,0.19232513,109190.0,109180.0,0.00014914]
[1748277056126,0.25382513,109190.0,109180.0,0.00014914]
[1748277056750,0.25382513,109190.0,109160.0,0.51381509]
[1748277056751,0.20151996,109170.0,109160.0,0.31280822]
[1748277056955,0.01831895,109170.0,109160.0,3.54943164]
[1748277057165,0.20151713,109180.0,109170.0,0.0301]
[1748277057330,0.20151713,109180.0,109170.0,2.83005012]
[1748277058479,0.20151713,109180.0,109170.0,2.286438]
[1748277058706,0.20251713,109180.0,109170.0,0.002]
[1748277058934,0.23301713,109180.0,109170.0,0.002]
[1748277059382,0.23301713,109180.0,109170.0,0.118088]
[1748277059641,0.22891714,109180.0,109170.0,0.004]
[1748277060493,0.19841714,109180.0,109170.0,0.004]
[1748277061562,0.19841714,109180.0,109170.0,1.969751]
[1748277061836,0.19841714,109180.0,109170.0,2.48326312]
[1748277062063,0.19841714,109180.0,109170.0,1.969751]
[1748277062286,0.22891714,109180.0,109170.0,0.004]
[1748277062526,0.25991714,109180.0,109170.0,0.004]
[1748277062749,0.22891714,109180.0,109170.0,0.004]
[1748277062963,0.34489714,109180.0,109170.0,0.004]
[1748277063176,0.19841714,109180.0,109170.0,0.344644]
[1748277063394,0.34489714,109180.0,109170.0,0.154768]
[1748277063607,0.34489714,109180.0,109170.0,0.261577]
[1748277063837,0.34489714,109180.0,109170.0,0.161514]
[1748277064522,0.34489714,109180.0,109170.0,0.67502612]
[1748277064755,0.34489714,109180.0,109170.0,0.80378812]
[1748277064994,0.19841714,109180.0,109170.0,0.98698863]
[1748277065225,0.20250159,109180.0,109170.0,1.11639413]
[1748277065448,0.19334274,109180.0,109170.0,1.11639421]
[1748277065876,0.01931727,109180.0,109170.0,1.53141412]
[1748277066097,0.001,109180.0,109170.0,1.53141412]
[1748277066625,0.001,109180.0,109170.0,1.53641412]
[1748277066911,0.001,109180.0,109170.0,1.55099508]
[1748277067177,0.01831526,109190.0,109180.0,0.61526027]
[1748277067432,0.21062376,109200.0,109190.0,0.28978199]
[1748277067701,0.21062376,109200.0,109190.0,4.20948767]
[1748277067943,0.21062227,109200.0,109190.0,4.20032975]
[1748277068388,0.0091565,109210.0,109200.0,0.18315018]
[1748277068644,0.21060283,109210.0,109200.0,4.18577028]
[1748277068896,0.20194429,109210.0,109200.0,4.5166132]
[1748277069158,0.19278804,109210.0,109200.0,2.841967]
[1748277069420,0.19278804,109210.0,109200.0,1.437018]
[1748277069633,0.19278804,109210.0,109200.0,1.4479466]
[1748277070296,0.21110087,109210.0,109200.0,2.28296905]
[1748277070502,0.21110087,109210.0,109200.0,2.27381188]
[1748277070725,0.19278812,109210.0,109200.0,2.27381188]
[1748277070929,0.19278812,109210.0,109200.0,2.08250428]
[1748277071153,0.19278812,109210.0,109200.0,2.27481196]
[1748277071386,0.00049813,109210.0,109200.0,2.68772432]
[1748277071592,0.03662214,109220.0,109210.0,0.58598734]
[1748277071817,0.00014939,109220.0,109210.0,4.50569302]
[1748277072041,0.01846021,109220.0,109210.0,4.55490543]
[1748277072248,0.21073284,109220.0,109210.0,3.92905407]
[1748277072461,0.21073284,109220.0,109210.0,4.46087902]
[1748277072670,0.21073284,109220.0,109210.0,4.47003527]
[1748277073269,0.21073284,109220.0,109210.0,4.46087902]
[1748277073451,0.21173284,109220.0,109210.0,4.46087902]
[1748277073653,0.21173284,109220.0,109210.0,4.44256619]
[1748277073850,0.21173284,109220.0,109210.0,4.45714715]
[1748277074051,0.02861554,109220.0,109210.0,4.51551597]
[1748277074256,0.22088801,109220.0,109210.0,4.50635989]
[1748277074465,0.21173285,109220.0,109210.0,4.51094811]
[1748277075158,0.21173285,109220.0,109210.0,4.52010444]
[1748277075358,0.02861562,109220.0,109210.0,4.67570052]
[1748277075565,0.21173284,109220.0,109210.0,4.6482317]
[1748277075769,0.20257743,109220.0,109210.0,3.75593292]
[1748277075977,0.20257743,109220.0,109210.0,0.20728196]
[1748277076162,0.23557743,109220.0,109210.0,0.18879296]
[1748277076353,0.20257743,109220.0,109210.0,1.01414063]
[1748277076709,0.01946046,109220.0,109210.0,1.38699405]
[1748277076838,0.00114939,109220.0,109210.0,1.5719301]
[1748277077069,0.20257642,109220.0,109210.0,0.64289662]
[1748277077239,0.2025771,109220.0,109210.0,0.64289662]
[1748277077796,0.2025771,109220.0,109210.0,1.15640874]
[1748277078042,0.2025771,109220.0,109210.0,0.18513293]
[1748277079467,0.2025771,109220.0,109210.0,0.174212]
[1748277080218,0.2025771,109220.0,109210.0,0.68772412]
[1748277081106,0.2025771,109220.0,109210.0,0.174212]
[1748277081484,0.2025771,109220.0,109210.0,0.68772412]
[1748277082028,0.2025771,109220.0,109210.0,0.174212]
[1748277082690,0.19230752,109200.0,109190.0,0.05972181]
[1748277082901,0.20146477,109200.0,109190.0,4.48627004]
[1748277083112,0.20146477,109200.0,109190.0,4.34669904]
[1748277083360,0.20146477,109200.0,109190.0,4.49313904]
[1748277083530,0.20146477,109200.0,109190.0,4.35043435]
[1748277083739,0.19230752,109200.0,109190.0,4.47855808]
[1748277083967,0.18315018,109200.0,109190.0,4.47855808]
[1748277084375,0.18415018,109200.0,109190.0,4.48155808]
[1748277084598,0.18415018,109200.0,109190.0,4.49071626]
[1748277085032,0.18415018,109200.0,109190.0,4.49271626]
[1748277085265,0.18415018,109200.0,109190.0,4.50187435]
[1748277085465,0.18415018,109200.0,109190.0,4.49271626]
[1748277086899,0.18415018,109200.0,109190.0,4.50187435]
[1748277087366,0.18415018,109200.0,109190.0,4.10503453]
[1748277087568,0.18415018,109200.0,109190.0,4.43464148]
[1748277087768,0.18415018,109200.0,109190.0,4.28257453]
[1748277088175,0.18415018,109200.0,109190.0,4.31930148]
[1748277088376,0.18415018,109200.0,109190.0,4.46574148]
[1748277088866,0.18415018,109200.0,109190.0,4.47489982]
[1748277089278,0.18415018,109200.0,109190.0,4.48405808]
[1748277089512,0.001,109200.0,109190.0,4.48405808]
[1748277089729,0.01015683,109200.0,109190.0,4.53437385]
[1748277089935,0.01015692,109200.0,109190.0,4.53437385]
[1748277090184,0.02847117,109200.0,109190.0,4.53437385]
[1748277090611,0.01931392,109200.0,109190.0,4.53437385]
[1748277090829,0.22077885,109200.0,109190.0,3.62262241]
[1748277091053,0.38110477,109200.0,109190.0,1.04483335]
[1748277091262,0.38110477,109200.0,109190.0,0.316687]
[1748277091680,0.38110477,109200.0,109160.0,0.88040941]
[1748277091681,0.19236045,109170.0,109160.0,0.88040941]
[1748277091892,0.21068016,109170.0,109160.0,4.0995731]
[1748277092111,0.21068016,109170.0,109160.0,3.94397266]
[1748277092370,0.21068016,109170.0,109160.0,3.76029266]
[1748277092596,0.20152047,109170.0,109160.0,4.10029283]
[1748277092831,0.20152047,109170.0,109160.0,4.29785413]
[1748277093048,0.20152047,109170.0,109160.0,4.33121391]
[1748277093258,0.20152047,109170.0,109160.0,4.31289311]
[1748277093458,0.20152047,109170.0,109160.0,4.32205355]
[1748277093703,0.20252047,109170.0,109160.0,4.30773259]
[1748277093925,0.19336053,109170.0,109160.0,4.28409328]
[1748277094643,0.19336053,109170.0,109160.0,4.14681389]
[1748277094861,0.19336053,109170.0,109160.0,4.30541441]
[1748277095072,0.00915784,109190.0,109180.0,0.55066027]
[1748277095282,0.04578979,109190.0,109180.0,4.0690879]
[1748277095489,0.21979965,109190.0,109180.0,4.16401597]
[1748277095905,0.18315021,109200.0,109190.0,0.00915826]
[1748277096119,0.00915734,109200.0,109190.0,3.8117444]
[1748277096322,0.2014646,109200.0,109190.0,4.15483833]
[1748277096526,0.02747184,109200.0,109190.0,4.16399609]
[1748277096911,0.21977952,109200.0,109190.0,4.15483875]
[1748277097779,0.19229008,109210.0,109200.0,0.20146477]
[1748277097983,0.19229008,109210.0,109200.0,3.77853653]
[1748277097984,0.2178738,109210.0,109200.0,3.77853653]
[1748277098405,0.02746916,109210.0,109200.0,3.81769345]
[1748277098938,0.02761852,109210.0,109200.0,3.81769345]
[1748277099416,0.0377751,109210.0,109200.0,3.81769345]
[1748277099653,0.00114936,109210.0,109200.0,4.3186743]
[1748277099922,0.00314936,109210.0,109200.0,4.3186743]
[1748277100112,0.0214616,109210.0,109200.0,4.3186743]
[1748277100279,0.01230535,109210.0,109200.0,4.3186743]
[1748277100502,0.0306181,109210.0,109200.0,4.2886743]
[1748277100852,0.03061793,109210.0,109200.0,4.2886743]
[1748277101782,0.03061801,109210.0,109200.0,4.2886743]
[1748277102018,0.2137521,109210.0,109200.0,3.58671024]
[1748277102242,0.2137521,109210.0,109200.0,2.87089149]
[1748277102487,0.2137521,109210.0,109200.0,2.86173424]
[1748277102683,0.20459585,109210.0,109200.0,2.66942656]
[1748277102909,0.20459585,109210.0,109200.0,2.86173408]
[1748277103150,0.20459585,109210.0,109200.0,2.85257674]
[1748277103376,0.20459585,109210.0,109200.0,2.87089133]
[1748277103601,0.20459585,109210.0,109200.0,2.86913722]
[1748277103809,0.02146193,109210.0,109200.0,3.38028839]
[1748277104020,0.02146193,109210.0,109200.0,0.8904905]
[1748277104021,0.20459568,109210.0,109200.0,0.8904905]
[1748277104220,0.20459568,109210.0,109200.0,0.6311475]
[1748277104653,0.26569568,109210.0,109200.0,0.205717]
[1748277104826,0.19230752,109200.0,109190.0,3.304857]
[1748277105069,0.19230752,109200.0,109190.0,3.39440256]
[1748277105289,0.19230752,109200.0,109190.0,1.92869856]
[1748277105497,0.22330752,109200.0,109190.0,1.81612656]
[1748277105706,0.36974752,109200.0,109190.0,1.376171]
[1748277105916,0.21066052,109180.0,109170.0,0.85231265]
[1748277106120,0.21066052,109180.0,109170.0,4.25587515]
[1748277106301,0.21066052,109180.0,109170.0,4.270416]
[1748277106543,0.21066052,109180.0,109170.0,4.25587515]
[1748277106667,0.21066052,109180.0,109170.0,4.28873545]
[1748277106873,0.19234291,109180.0,109170.0,4.05435468]
[1748277107113,0.19334291,109180.0,109170.0,3.41294341]
[1748277107455,0.19334291,109180.0,109170.0,3.07881341]
[1748277107895,0.19334291,109180.0,109170.0,1.14786341]
[1748277108095,0.19334291,109180.0,109170.0,0.267374]
[1748277108096,0.25634291,109180.0,109170.0,0.267374]
[1748277108301,0.22404291,109180.0,109170.0,0.267374]
[1748277108504,0.22404291,109180.0,109170.0,0.96408663]
[1748277108712,0.19334291,109180.0,109170.0,0.87043168]
[1748277108912,0.19234291,109180.0,109170.0,0.86943168]
[1748277109336,0.19234291,109180.0,109170.0,1.39463219]
[1748277109540,0.19234291,109180.0,109170.0,1.40379204]
[1748277109711,0.20150176,109180.0,109170.0,1.44803289]
[1748277109919,0.21066044,109180.0,109170.0,1.45719258]
[1748277110130,0.21066044,109180.0,109170.0,1.45919258]
[1748277110671,0.21066044,109180.0,109170.0,1.44087304]
[1748277110870,0.19234283,109180.0,109170.0,1.21043168]
[1748277111075,0.22344283,109180.0,109170.0,0.267374]
[1748277111277,0.22344283,109180.0,109170.0,0.23603]
[1748277111718,0.40098283,109180.0,109170.0,0.20983]
[1748277112277,0.40098283,109180.0,109170.0,0.13029225]
[1748277112508,0.40098283,109180.0,109170.0,0.12829225]
[1748277112771,0.40098283,109180.0,109170.0,0.01154825]
[1748277113348,0.34408839,109180.0,109170.0,0.01154825]
[1748277113513,1.27696202,109180.0,109170.0,0.01154825]
[1748277113750,1.27696202,109180.0,109170.0,0.01054825]
[1748277113895,1.45696202,109180.0,109170.0,0.002]
[1748277114096,1.27696202,109180.0,109170.0,0.002]
[1748277114341,0.26373842,109160.0,109150.0,0.03671536]
[1748277114497,0.45487381,109160.0,109150.0,0.03671536]
[1748277114698,0.20157536,109140.0,109130.0,0.34]
[1748277115033,0.18325087,109140.0,109130.0,1.540229]
[1748277115410,0.18325087,109140.0,109130.0,1.54876965]
[1748277115616,0.18321552,109170.0,109150.0,0.2107175]
[1748277115819,0.03664176,109160.0,109150.0,0.72422996]
[1748277116021,0.21985973,109160.0,109150.0,2.47949223]
[1748277116229,0.00916036,109160.0,109150.0,3.1008723]
[1748277116440,0.18918373,109180.0,109150.0,3.08792864]
[1748277116660,0.0274788,109170.0,109160.0,4.02906798]
[1748277116864,0.03863874,109170.0,109160.0,4.02906798]
[1748277117066,0.23099927,109170.0,109160.0,4.02906798]
[1748277117238,0.04779876,109170.0,109160.0,4.02906798]
[1748277117472,0.02031895,109170.0,109160.0,4.11861354]
[1748277117682,0.01115927,109170.0,109160.0,4.16355439]
[1748277117887,0.04779801,109170.0,109160.0,4.16355439]
[1748277118099,0.03663807,109170.0,109160.0,4.13315439]
[1748277118304,0.02747822,109170.0,109160.0,4.13315439]
[1748277118506,0.03663799,109170.0,109160.0,4.13315439]
[1748277118714,0.20152022,109170.0,109160.0,0.61275441]
[1748277118920,0.20152022,109170.0,109160.0,0.7959717]
[1748277119127,0.20152022,109170.0,109160.0,1.32780529]
[1748277119329,0.20252022,109170.0,109160.0,1.31326452]
[1748277119482,0.20552022,109170.0,109160.0,1.32242504]
[1748277119686,0.20552022,109170.0,109160.0,1.31326452]
[1748277119883,0.20552022,109170.0,109160.0,1.32242513]
[1748277120086,0.03147914,109170.0,109160.0,1.37114584]
[1748277120267,0.22383959,109170.0,109160.0,1.32242513]
[1748277120485,0.21468007,109170.0,109160.0,0.80891301]
[1748277120676,0.21468007,109170.0,109160.0,1.33158565]
[1748277120877,0.01315927,109170.0,109160.0,1.38618677]
[1748277121076,0.004,109170.0,109160.0,1.38618677]
[1748277121283,0.01315935,109170.0,109160.0,1.38618677]
[1748277121482,0.20552014,109170.0,109160.0,1.02218012]
[1748277121685,0.20552014,109170.0,109160.0,1.21455819]
[1748277122115,0.20552014,109170.0,109160.0,0.70104607]
[1748277122279,0.19336045,109170.0,109160.0,1.02218012]
[1748277122480,0.19336045,109170.0,109160.0,1.20539741]
[1748277122730,0.19236045,109170.0,109160.0,1.20639741]
[1748277122938,0.01831912,109170.0,109160.0,1.32342472]
[1748277123088,0.01831794,109180.0,109170.0,0.55067939]
[1748277123289,0.36629945,109180.0,109170.0,4.10943473]
[1748277123492,0.02747587,109180.0,109170.0,4.12775368]
[1748277123693,0.01831543,109190.0,109180.0,0.22520053]
[1748277123903,0.33879046,109200.0,109190.0,0.20147502]
[1748277124107,0.34794788,109200.0,109190.0,2.56608987]
[1748277124305,0.20146788,109200.0,109190.0,2.566588]
[1748277124506,0.21977918,109200.0,109190.0,2.47297481]
[1748277124711,0.21977902,109200.0,109190.0,2.47297481]
[1748277124927,0.20146477,109200.0,109190.0,2.67068261]
[1748277125135,0.20146477,109200.0,109190.0,2.48751566]
[1748277125501,0.20446477,109200.0,109190.0,2.48851566]
[1748277125904,0.23666477,109200.0,109190.0,0.26507313]
[1748277126117,0.26696477,109200.0,109190.0,0.00149813]
[1748277127401,0.26996477,109200.0,109190.0,0.00149813]
[1748277128197,0.57320712,109200.0,109190.0,0.00149813]
[1748277128766,0.69320712,109200.0,109190.0,0.00149813]
[1748277130383,1.20671924,109200.0,109190.0,0.00149813]
[1748277130583,1.60671924,109200.0,109190.0,0.00149813]
[1748277130915,0.23393842,109160.0,109150.0,0.01456146]
[1748277131114,0.23393842,109160.0,109150.0,0.01471102]
[1748277131115,0.41061842,109160.0,109150.0,0.01471102]
[1748277131360,0.50016398,109160.0,109150.0,0.00014956]
[1748277131716,0.50016398,109160.0,109150.0,0.00868924]
[1748277132530,0.50116398,109160.0,109150.0,0.00868924]
[1748277133127,1.0146761,109160.0,109150.0,0.00868924]
[1748277133331,1.10419761,109160.0,109150.0,0.00868924]
[1748277133533,0.59168549,109160.0,109150.0,0.00968924]
[1748277133796,0.35468398,109160.0,109150.0,0.00114956]
[1748277134000,0.59096398,109160.0,109150.0,0.00114956]
[1748277134206,0.59096398,109160.0,109150.0,0.00014956]
[1748277134416,0.35493842,109160.0,109150.0,0.00014956]
[1748277134698,0.50341842,109160.0,109150.0,0.00114956]
[1748277135471,0.57208182,109160.0,109150.0,0.00114956]
[1748277136095,0.57208182,109160.0,109150.0,0.00968806]
[1748277136302,0.32453842,109160.0,109150.0,2.78562918]
[1748277136512,0.20453842,109160.0,109150.0,2.81792918]
[1748277136736,0.19537798,109160.0,109150.0,0.22037806]
[1748277136952,0.34185798,109160.0,109150.0,0.14818806]
[1748277137150,0.19537798,109160.0,109150.0,0.84909596]
[1748277137352,0.19537798,109160.0,109150.0,0.89971861]
[1748277137522,0.21369928,109160.0,109150.0,0.89055741]
[1748277137767,0.21369928,109160.0,109150.0,0.87639596]
[1748277137970,0.20453884,109160.0,109150.0,0.87639596]
[1748277138234,0.01216019,109160.0,109150.0,0.99342544]
[1748277138384,0.22285905,109160.0,109150.0,0.99880518]
[1748277138589,0.23201991,109160.0,109150.0,1.00796638]
[1748277139392,0.003,109160.0,109150.0,1.01712749]
[1748277139595,0.01216027,109160.0,109150.0,1.01712749]
[1748277139795,0.01216019,109160.0,109150.0,1.01712749]
[1748277139994,0.0101601,109160.0,109150.0,1.35712749]
[1748277140195,0.001,109160.0,109150.0,1.39002749]
[1748277140803,0.001,109160.0,109150.0,2.23413961]
[1748277141255,0.04154434,109200.0,109190.0,0.19232513]
[1748277141423,0.04154434,109200.0,109190.0,4.02869902]
[1748277141424,0.03238717,109200.0,109190.0,4.02869902]
[1748277141626,0.03238717,109200.0,109190.0,4.31180543]
[1748277141894,0.03238717,109200.0,109190.0,4.85561755]
[1748277142059,0.001,109200.0,109190.0,4.88809055]
[1748277142261,0.03138717,109220.0,109210.0,0.62794325]
[1748277142601,0.0308857,109220.0,109210.0,4.52514693]
[1748277143234,0.04004086,109220.0,109210.0,4.52514693]
[1748277143441,0.0308857,109220.0,109210.0,4.53970839]
[1748277143658,0.0308857,109220.0,109210.0,4.02619627]
[1748277143869,0.0318857,109220.0,109210.0,4.53970839]
[1748277144044,0.0318857,109220.0,109210.0,4.55361996]
[1748277144310,0.0338857,109220.0,109210.0,4.55461996]
[1748277144728,0.0338857,109220.0,109210.0,4.22501996]
[1748277144937,0.23531341,109220.0,109210.0,4.00050599]
[1748277145147,0.04304086,109220.0,109210.0,3.66729661]
[1748277145345,0.24446857,109220.0,109210.0,4.51032873]
[1748277145554,0.23531341,109220.0,109210.0,3.40965302]
[1748277145770,0.23531341,109220.0,109210.0,2.85549002]
[1748277145981,0.23431341,109220.0,109210.0,2.76594446]
[1748277146185,0.20192624,109220.0,109210.0,3.26389512]
[1748277146387,0.20192624,109220.0,109210.0,3.47453938]
[1748277146593,0.19277083,109220.0,109210.0,3.4581852]
[1748277146793,0.18361517,109220.0,109210.0,3.26589512]
[1748277146976,0.18361517,109220.0,109210.0,3.26689512]
[1748277147218,0.18361517,109220.0,109210.0,3.27405179]
[1748277147421,0.18361517,109220.0,109210.0,3.44802853]
[1748277147724,0.00049853,109220.0,109210.0,3.6102846]
[1748277147943,0.0096536,109220.0,109210.0,3.62859701]
[1748277148158,0.00049853,109220.0,109210.0,3.67108925]
[1748277148316,0.0096536,109220.0,109210.0,3.67108925]
[1748277148526,0.00049853,109220.0,109210.0,3.67108925]
[1748277148892,0.00049853,109220.0,109210.0,3.67608925]
[1748277149309,0.00049853,109220.0,109210.0,3.69065071]
[1748277149730,0.01880892,109220.0,109210.0,3.83709071]
[1748277150303,0.00049853,109220.0,109210.0,3.83709071]
[1748277150974,0.01830721,109240.0,109230.0,0.77111681]
[1748277151193,0.21069374,109240.0,109230.0,4.13629932]
[1748277151402,0.19238653,109240.0,109230.0,3.56760368]
[1748277151831,0.19238653,109240.0,109230.0,2.41162]
[1748277152513,0.19438653,109240.0,109230.0,2.41162]
[1748277152824,0.19738653,109240.0,109230.0,2.41262]
[1748277153289,0.19738653,109240.0,109230.0,3.19877756]
[1748277153501,0.2065406,109240.0,109230.0,3.21708712]
[1748277153710,0.19738662,109240.0,109230.0,2.50216556]
[1748277153919,0.19738662,109240.0,109230.0,3.01567768]
[1748277154352,0.01430326,109240.0,109230.0,3.21708737]
[1748277154576,0.22484798,109240.0,109230.0,2.71272999]
[1748277154778,0.21569442,109240.0,109230.0,3.22624211]
[1748277154987,0.2065406,109240.0,109230.0,3.01567768]
[1748277155347,0.2065406,109240.0,109230.0,3.02483267]
[1748277155667,0.2065406,109240.0,109230.0,3.01567768]
[1748277156391,0.2065406,109240.0,109230.0,3.20793238]